[Event "SixDays Budapest IM-A 09-2024"]
[Site "Budapest"]
[Date "2024.09.29"]
[Round "9.4"]
[White "Bashirov, Kemal"]
[Black "Wadifa, Ahmed"]
[Result "0-1"]
[ECO "D51"]
[WhiteElo "2328"]
[BlackElo "1988"]
[Annotator "ChessBase"]
[PlyCount "98"]
[EventDate "2024.09.24"]
[EventType "tourn"]
[EventCountry "HUN"]
[SourceTitle "playchess.com"]
[Source "ChessBase"]
[SourceQuality "1"]
[TimeControl "5400+30"]

1. d4 {[%emt 0:00:03]} d5 {[%emt 0:12:37]} 2. c4 {[%emt 0:00:06]} e6 {[%emt 0:01:16]} 3. Nc3 {[%emt 0:00:04]} Nf6 {[%emt 0:00:04]} 4. Bg5 {[%emt 0:00:03]} Nbd7 {[%emt 0:00:28]} 5. cxd5 {[%emt 0:00:24]} exd5 {[%emt 0:00:07]} 6. e3 {[%emt 0:00:05]} Be7 {[%emt 0:00:33]} 7. Bd3 {[%emt 0:00:13]} c6 {[%emt 0:00:39]} 8. Nf3 {[%emt 0:00:09]} O-O {[%emt 0:00:08]} 9. O-O {[%emt 0:00:10]} Re8 {[%emt 0:00:46]} 10. Qc2 {[%emt 0:05:05]} h6 {[%emt 0:00:11]} 11. Bf4 {[%emt 0:00:23]} Nh5 {[%emt 0:03:51]} 12. Nxd5 {[%emt 0:00:40]} Nxf4 {[%emt 0:03:29]} 13. Nxf4 {[%emt 0:00:12]} Bd6 {[%emt 0:01:24]} 14. Ne2 {[%emt 0:04:15]} Nf8 {[%emt 0:03:20]} 15. Ng3 {[%emt 0:05:03]} Bg4 {[%emt 0:01:17]} 16. Nd2 {[%emt 0:01:58]} h5 {[%emt 0:05:29]} 17. Bf5 {[%emt 0:07:49]} Bxf5 {[%emt 0:04:01]} 18. Qxf5 {[%emt 0:06:08]} g6 {[%emt 0:01:01]} 19. Qf3 {[%emt 0:07:51]} Nh7 {[%emt 0:01:56]} 20. Nge4 {[%emt 0:06:15]} Bc7 {[%emt 0:01:03]} 21. Qd1 {[%emt 0:07:37]} Qd5 {[%emt 0:05:04]} 22. Nc3 {[%emt 0:12:06]} Qd6 {[%emt 0:00:33]} 23. f4 {[%emt 0:01:12]} Qb4 {[%emt 0:03:19]} 24. a3 {[%emt 0:05:20]} Qxb2 {[%emt 0:09:59]} 25. Nc4 {[%emt 0:04:18]} Qxc3 {[%emt 0:01:40]} 26. Rc1 {[%emt 0:00:03]} Rxe3 {[%emt 0:00:08]} 27. Rxc3 {[%emt 0:00:03]} Rxc3 {[%emt 0:00:07]} 28. f5 {[%emt 0:04:12]} g5 {[%emt 0:06:32]} 29. Ne5 {[%emt 0:00:36]} Nf6 {[%emt 0:01:00]} 30. Qd2 {[%emt 0:00:51]} Ne4 {[%emt 0:00:06]} 31. Qe2 {[%emt 0:00:06]} Nf6 {[%emt 0:00:36]} 32. Qb2 {[%emt 0:00:59]} Nd5 {[%emt 0:01:00]} 33. Nxf7 {[%emt 0:08:37]} Kxf7 {[%emt 0:00:56]} 34. Qe2 {[%emt 0:00:13]} Nf4 {[%emt 0:00:05]} 35. Rxf4 {[%emt 0:01:17]} Bxf4 {[%emt 0:00:30]} 36. Qxh5+ {[%emt 0:00:03]} Ke7 {[%emt 0:01:08]} 37. Qg6 {[%emt 0:02:59]} Re8 {[%emt 0:06:34]} 38. f6+ {[%emt 0:01:25]} Kd7 {[%emt 0:02:00]} 39. f7 {[%emt 0:04:20]} Rf8 {[%emt 0:01:59]} 40. h4 {[%emt 0:02:29]} Ke7 {[%emt 0:02:38]} 41. Qe4+ {[%emt 0:01:16]} Kxf7 {[%emt 0:00:29]} 42. d5 {[%emt 0:01:34]} Re8 {[%emt 0:03:58]} 43. Qh7+ {[%emt 0:01:58]} Kf6 {[%emt 0:00:08]} 44. Qh6+ {[%emt 0:00:46]} Kf7 {[%emt 0:01:29]} 45. Qh7+ {[%emt 0:00:52]} Kf6 {[%emt 0:00:02]} 46. Qh6+ {[%emt 0:00:09]} Kf7 {[%emt 0:00:08]} 47. Qh5+ {[%emt 0:00:55]} Ke7 {[%emt 0:00:35]} 48. hxg5 {[%emt 0:00:37]} Bg3 {[%emt 0:00:43]} 49. Kf1 {[%emt 0:00:37]} Kd8 {[%emt 0:00:31]} 0-1

[Event "SixDays Budapest IM-A 09-2024"]
[Site "Budapest"]
[Date "2024.09.29"]
[Round "9.5"]
[White "Pavan Karthikeya Varma Gunturi"]
[Black "Pacher, Milan"]
[Result "1/2-1/2"]
[ECO "C04"]
[WhiteElo "2056"]
[BlackElo "2343"]
[Annotator "ChessBase"]
[PlyCount "51"]
[EventDate "2024.09.24"]
[EventType "tourn"]
[EventCountry "HUN"]
[SourceTitle "playchess.com"]
[Source "ChessBase"]
[SourceQuality "1"]
[TimeControl "5400+30"]

1. e4 {[%emt 0:00:04]} e6 {[%emt 0:17:33]} 2. d4 {[%emt 0:00:07]} d5 {[%emt 0:00:03]} 3. Nd2 {[%emt 0:00:09]} Nc6 {[%emt 0:00:11]} 4. Ngf3 {[%emt 0:00:26]} Nf6 {[%emt 0:00:05]} 5. e5 {[%emt 0:01:13]} Nd7 {[%emt 0:00:04]} 6. c3 {[%emt 0:00:46]} f6 {[%emt 0:00:10]} 7. exf6 {[%emt 0:03:58]} Qxf6 {[%emt 0:00:03]} 8. Bb5 {[%emt 0:04:56]} Bd6 {[%emt 0:00:08]} 9. Nf1 {[%emt 0:09:05]} Ne7 {[%emt 0:02:09]} 10. Bg5 {[%emt 0:03:47]} Qf7 {[%emt 0:00:04]} 11. Bxe7 {[%emt 0:03:32]} Qxe7 {[%emt 0:00:04]} 12. Ne3 {[%emt 0:00:29]} O-O {[%emt 0:01:38]} 13. O-O {[%emt 0:02:28]} c6 {[%emt 0:03:36]} 14. Bd3 {[%emt 0:00:27]} e5 {[%emt 0:00:08]} 15. Nf5 {[%emt 0:03:35]} Qf6 {[%emt 0:00:02]} 16. Nxd6 {[%emt 0:01:08]} Qxd6 {[%emt 0:00:03]} 17. dxe5 {[%emt 0:01:34]} Nxe5 {[%emt 0:00:02]} 18. Nxe5 {[%emt 0:01:24]} Qxe5 {[%emt 0:00:02]} 19. Qe2 {[%emt 0:00:11]} Qxe2 {[%emt 0:06:26]} 20. Bxe2 {[%emt 0:00:38]} Bf5 {[%emt 0:00:02]} 21. Rfe1 {[%emt 0:03:54]} Rfe8 {[%emt 0:02:21]} 22. f3 {[%emt 0:00:59]} Kf7 {[%emt 0:00:05]} 23. Kf2 {[%emt 0:00:08]} Re5 {[%emt 0:00:39]} 24. Bf1 {[%emt 0:00:28]} Rae8 {[%emt 0:00:03]} 25. Rxe5 {[%emt 0:00:07]} Rxe5 {[%emt 0:00:03]} 26. Re1 {[%emt 0:00:06]} 1/2-1/2